[Event "32nd Reykjavik Open 2017"]
[Site "Reykjavik"]
[Date "2017.04.19"]
[Round "1"]
[White "Jonsson, Gauti Pall"]
[Black "Giri, Anish"]
[Result "0-1"]
[ECO "B47"]
[WhiteElo "2087"]
[BlackElo "2771"]
[Annotator "TA"]
[PlyCount "60"]
[EventDate "2017.??.??"]
[EventType "swiss"]
[EventCountry "ISL"]
[SourceTitle "playchess.com"]
[Source "ChessBase"]
[SourceQuality "1"]
[TimeControl "40/5400+30:1800+30"]

1. e4 {[%emt 0:00:00]} c5 {[%emt 0:00:18]} 2. Nf3 {[%emt 0:00:00]} e6 {[%emt 0:00:06]} 3. d4 {[%emt 0:00:23]} cxd4 {[%emt 0:00:04]} 4. Nxd4 {[%emt 0:00:11]} Nc6 {[%emt 0:00:07]} 5. Nc3 {[%emt 0:00:35]} Qc7 {[%emt 0:00:07]} 6. g3 {[%emt 0:00:39]} a6 {[%emt 0:00:22]} 7. Bg2 {[%emt 0:00:52]} d6 {[%emt 0:02:32]} 8. O-O {[%emt 0:01:58]} Bd7 {[%emt 0:00:14]} 9. Be3 {[%emt 0:02:27]} Nf6 {[%emt 0:00:59]} 10. Qe2 {[%emt 0:04:19]} Be7 {[%emt 0:00:32]} 11. Rad1 {[%emt 0:01:59]} O-O {[%emt 0:01:29]} 12. Kh1 {[%emt 0:02:32]} b5 {[%emt 0:00:30]} 13. f4 {[%emt 0:05:13]} b4 {[%emt 0:00:51]} 14. Nxc6 {[%emt 0:04:10]} Bxc6 {[%emt 0:00:12]} 15. e5 {[%emt 0:01:54]} dxe5 {[%emt 0:03:43]} 16. fxe5 {[%emt 0:01:02]} Bxg2+ {[%emt 0:00:06]} 17. Qxg2 {[%emt 0:00:22]} Ng4 {[%emt 0:00:15]} 18. Bd4 {[%emt 0:02:16]} bxc3 {[%emt 0:00:42]} 19. Qe4 {[%emt 0:00:25]} h5 {[%emt 0:02:58]} 20. h3 {[%emt 0:01:38]} Nh6 {[%emt 0:00:07]} 21. Bxc3 {[%emt 0:01:31]} Nf5 {[%emt 0:00:07]} 22. Rf3 {[%emt 0:03:04]} Rad8 {[%emt 0:01:14]} 23. Rg1 {[%emt 0:01:49]} Bc5 {[%emt 0:00:29]} 24. Rg2 {[%emt 0:01:24]} Rd1+ {[%emt 0:00:58]} 25. Kh2 {[%emt 0:07:00]} Qb6 {[%emt 0:00:32]} 26. Be1 {[%emt 0:04:56]} Qxb2 {[%emt 0:04:28]} 27. g4 {[%emt 0:03:07]} Qd4 {[%emt 0:00:55]} 28. Qe2 {[%emt 0:00:59]} Ne3 {[%emt 0:00:46]} 29. Bf2 {[%emt 0:04:04]} Qxe5+ {[%emt 0:01:02]} 30. Bg3 {[%emt 0:01:55]} Nf1+ 0-1